Cogmind - Beta 14 @@@ ROGUE MODE // 2024.10.05 @ 17:36:14 Player: THN-L0C Result: Destroyed by 81-U7X(R) with Subdweller Shrapnel Launcher Performance ------------- Evolutions (0) 0 Regions Visited (3) 600 Robots Destroyed (32) 160 Value Destroyed (954) 954 Prototype IDs (0) 0 Alien Tech Used (0) 0 Bonus (0) 0 TOTAL SCORE: 1714 Bonus ------- None Cogmind --------- Core Integrity 0/250 Matter 183/300 Energy 125/125 System Corruption 0% Temperature Cool (0) Movement Treading (160) Location -10/Subcaves Parts ------- > --- POWER (1) -------- Light Ion Engine > --- PROPULSION (2) --- Light Treads Spiked Treads > --- UTILITY (2) ------ Scrap Shield > --- WEAPON (2) ------- Barrage Gun Rocket Launcher > --- INVENTORY (5) ---- Subdweller Power Source High-capacity Storage Unit Makeshift Light Armor Plating Battle Cannon Multitool Peak State ------------ > --- POWER ------------ Light Ion Engine > --- PROPULSION ------- Light Treads Spiked Treads > --- UTILITY ---------- Scrap Shield > --- WEAPON ----------- Barrage Gun Rocket Launcher > --- INVENTORY -------- Subdweller Power Source High-capacity Storage Unit Makeshift Light Armor Plating Battle Cannon Mining Laser [Rating: 14] Favorites ----------- Power Ion Engine Engine Ion Engine Propulsion Light Treads Treads Light Treads Utility Small Storage Unit Device Seismic Detector Storage Small Storage Unit Protection Scrap Shield Weapon Assault Rifle Ballistic Gun Assault Rifle Ballistic Cannon Battle Cannon Launcher Rocket Launcher Special Weapon Mining Laser Build | -11 -10 -10 -10 ------- Run | Yrd Mat Min Sub Slots Evolved . | . . . . Power . | . . . . Propulsion . | . . . . Utility . | . . . . Weapon . | . . . . Parts Attached 29 | 8 5 1 15 Power 3 | 2 . . 1 Engine 3 | 2 . . 1 Core . | . . . . Reactor . | . . . . Propulsion 6 | 2 2 . 2 Treads 6 | 2 2 . 2 Leg . | . . . . Wheel . | . . . . Hover . | . . . . Flight . | . . . . Utility 3 | 2 . . 1 Device 1 | 1 . . . Storage 1 | 1 . . . Processor . | . . . . Hackware . | . . . . Protection 1 | . . . 1 Artifact . | . . . . Weapon 17 | 2 3 1 11 Energy Gun . | . . . . Energy Cannon . | . . . . Ballistic Gun 7 | 2 2 1 2 Ballistic Cannon 1 | . . . 1 Launcher 4 | . . . 4 Special Weapon 5 | . 1 . 4 Impact Weapon . | . . . . Slashing Weapon . | . . . . Piercing Weapon . | . . . . Special Melee Weapon . | . . . . Unidentified Prototypes . | . . . . Parts Lost 3 | . 1 . 2 Power 1 | . . . 1 Propulsion 1 | . 1 . . Utility . | . . . . Weapon 1 | . . . 1 Highest Loss Streak 1 | . 1 . 1 To Critical Strikes . | . . . . Average Slot Usage (%) 93 | . 99 100 89 Engine 13 | . 14 14 13 Treads 27 | . 27 28 28 Device 7 | . 14 14 3 Storage 7 | . 14 14 3 Protection 6 | . . . 10 Ballistic Gun 19 | . 27 28 13 Launcher 5 | . . . 9 Special Weapon 3 | . . . 4 Peak Build Rating 14 | 7 8 8 14 Average Rating 9 | 5 7 8 11 On Entrance 5 | . 7 8 8 Naked Turns . | . . . . Heaviest Build 28 | 14 15 15 28 Greatest Support 40 | 40 40 40 40 Greatest Overweight (x) . | . . . . Average Overweight (x) . | . . . . Largest Inventory Capacity 8 | 8 8 8 8 Average Capacity 6 | 7 8 8 5 Most Carried 8 | 3 8 8 8 Average Carried 5 | 1 6 7 5 Final Capacity 8 | 8 8 8 5 Final Carried 8 | 3 8 8 5 Class Distribution -------------------- 100% | Mutant Dominant Class ---------------- Mutant | -10/Materials Mutant | -10/Mines Mutant | -10/Subcaves Resources | -11 -10 -10 -10 ----------- Run | Yrd Mat Min Sub Matter Collected 1045 | 309 124 129 483 Remotely . | . . . . Salvage Created 953 | 87 303 91 472 Parts 65 | 10 19 6 30 Haulers Intercepted 1 | . 1 . . Recyclers Shooed . | . . . . Parts Field Recycled . | . . . . Retrieved Matter . | . . . . Parts Self-Destructed 10 | . . . 10 Prevented . | . . . . Kills | -11 -10 -10 -10 ------- Run | Yrd Mat Min Sub Combat Hostiles Destroyed 26 | . 7 3 16 Guns 11 | . 7 3 1 AOE 15 | . . . 15 Classes Destroyed 7 | 1 4 . 2 Worker 1 | . 1 . . Tunneler 4 | 4 . . . Hauler 1 | . 1 . . Swarmer 4 | . 3 1 . Grunt 6 | . 4 2 . Artisan 1 | . . . 1 Subdweller 16 | . . . 16 Best Kill Streak 3 | 2 3 2 3 Combat Bots Only 3 | . 3 2 3 Max Kills in Single Turn 2 | 1 2 1 2 Gunslinging . | . . . . Exploded 2 | . . . 2 Melee . | . . . . Uniques/NPCs Destroyed . | . . . . Combat | -11 -10 -10 -10 -------- Run | Yrd Mat Min Sub Hostile Shots Fired 112 | . 61 13 38 Missed 34 | . 18 3 13 Damage Taken 1433 | . 478 118 837 Core 263 | . 96 . 167 Absorbed by Shields . | . . . . Core Remaining (%) 100 | 100 . . . Volleys Fired 113 | 10 34 9 60 Largest 2 | 2 2 2 2 Hottest 100 | 40 100 40 100 Shots Fired 170 | 20 65 18 67 Gun 127 | 20 62 18 27 Cannon . | . . . . Launcher 29 | . . . 29 Special 14 | . 3 . 11 Kinetic 127 | 20 62 18 27 Thermal 14 | . 3 . 11 Explosive 29 | . . . 29 Electromagnetic . | . . . . Robot Hit Streak 16 | 9 9 16 7 Robot Miss Streak 3 | 2 3 2 3 Penetration Max . | . . . . Secondary Targets 1 | . . 1 . Max Gunslinging Chain 1 | . . 1 . Shots Hit Robots 107 | 15 44 13 35 Core Hits 57 | 8 16 6 27 Critical Kills . | . . . . Critical Parts Destroyed . | . . . . Critical Strikes . | . . . . Melee Attacks . | . . . . Impact . | . . . . Slashing . | . . . . Piercing . | . . . . Sneak Attacks . | . . . . Combat Hostiles . | . . . . Follow-up Attacks . | . . . . Damage Inflicted 3149 | 149 593 173 2234 Guns 1096 | 149 593 173 181 Cannons . | . . . . Explosions 2053 | . . . 2053 Melee . | . . . . Ramming . | . . . . Kinetic 1096 | 149 593 173 181 Thermal . | . . . . Explosive 2053 | . . . 2053 Electromagnetic . | . . . . Impact . | . . . . Slashing . | . . . . Piercing . | . . . . Highest Corruption . | . . . . Average Corruption . | . . . . Corruption Purged . | . . . . Corruption Blocked . | . . . . Overload Shots . | . . . . Overflow Damage 7 | . . . 7 Projectiles . | . . . . Explosions 7 | . . . 7 Melee . | . . . . Knockbacks . | . . . . Impact . | . . . . Kinetic . | . . . . Secondary . | . . . . Self-Inflicted Damage 71 | . . . 71 Shots 4 | . . . 4 Rammed . | . . . . Targets Rammed . | . . . . Kicked . | . . . . Crushed . | . . . . Highest Temperature 60 | . 60 2 . Average Temperature 16 | . 19 2 . Received Heat Transfer 378 | . 231 57 90 Siege Activations . | . . . . Robots Corrupted . | . . . . Combat Hostiles . | . . . . Parts Fried . | . . . . Impact Corruptions . | . . . . Robots Melted . | . . . . Combat Hostiles . | . . . . Parts Melted . | . . . . Heat Transferred . | . . . . Parts Sabotaged . | . . . . Parts Stolen . | . . . . Parts Stripped . | . . . . Power Chain Reactions . | . . . . Alert | -11 -10 -10 -10 ------- Run | Yrd Mat Min Sub Peak Influence 205 | 20 205 78 . Initial 28 | . 13 28 . Average 47 | 8 60 44 . Maximum Alert Level 1 | . 1 . . Low Security (%) 98 | 100 96 100 . Level 1 1 | . 3 . . Level 2 . | . . . . Level 3 . | . . . . Level 4 . | . . . . Level 5 . | . . . . High Security . | . . . . Max Security . | . . . . Squads Dispatched . | . . . . Investigation . | . . . . Extermination . | . . . . Reinforcement . | . . . . Assault . | . . . . Garrison . | . . . . Intercept . | . . . . Searches Triggered . | . . . . Construction Impeded . | . . . . Haulers Reinforced . | . . . . Active Scanning Responses . | . . . . Cargo Convoy Interrupts . | . . . . Stealth | -11 -10 -10 -10 --------- Run | Yrd Mat Min Sub Distress Signals 1 | . 1 . . Communications Jammed . | . . . . Distress Signals . | . . . . Times Spotted 33 | . 11 5 17 Peak Tracking Total 5 | . 5 3 2 Tactical Retreats 3 | . 2 1 . Traps | -11 -10 -10 -10 ------- Run | Yrd Mat Min Sub Traps Triggered 2 | . . . 2 Indirectly . | . . . . Trap Hack Attempts . | . . . . Triggered . | . . . . Disarmed . | . . . . Reprogrammed . | . . . . Reused . | . . . . Traps Extracted . | . . . . Installed . | . . . . Triggered . | . . . . Machines | -11 -10 -10 -10 ---------- Run | Yrd Mat Min Sub Machines Disabled . | . . . . Max in Single Turn . | . . . . Machines Repaired . | . . . . Machines Dismantled . | . . . . Machines Sabotaged . | . . . . Overloaded Fab Kills . | . . . . Hacking | -11 -10 -10 -10 --------- Run | Yrd Mat Min Sub Machines Accessed 7 | . 5 1 1 Terminals 5 | . 5 . . Fabricators . | . . . . Repair Stations . | . . . . Recycling Units . | . . . . Scanalyzers . | . . . . Garrison Access . | . . . . Total Hacks 19 | . 14 1 4 Successful 16 | . 11 1 4 Failed 3 | . 3 . . Catastrophic . | . . . . Database Lockouts . | . . . . Manual 13 | . 13 . . Terminals 14 | . 14 . . Fabricators . | . . . . Repair Stations . | . . . . Recycling Units . | . . . . Scanalyzers . | . . . . Garrison Access . | . . . . Terminal Hacks 6 | . 1 1 4 Record 4 | . . . 4 Open Door 1 | . . 1 . Locate Traps 1 | . 1 . . Fabricator Hacks . | . . . . Repair Station Hacks . | . . . . Recycling Unit Hacks . | . . . . Scanalyzer . | . . . . Garrison Access Hacks . | . . . . Unauthorized Hacks 10 | . 10 . . Terminals 10 | . 10 . . Botnet 3 | . 3 . . Operators 2 | . 2 . . Skim 5 | . 5 . . Fabricators . | . . . . Repair Stations . | . . . . Recycling Units . | . . . . Scanalyzers . | . . . . Garrison Access . | . . . . Data Cores Recovered . | . . . . Used . | . . . . Hacking Detections 4 | . 4 . . Full Trace Events . | . . . . Feedback Events . | . . . . Feedback Blocked . | . . . . Robot Schematics Acquired . | . . . . Robots Built . | . . . . Authchips . | . . . . Time . | . . . . Total Robot Build Rating . | . . . . Part Schematics Acquired . | . . . . Parts Built . | . . . . Authchips . | . . . . Time . | . . . . Total Part Build Rating . | . . . . Parts Repaired . | . . . . Time . | . . . . Parts Recycled . | . . . . Recycled Matter . | . . . . Retrieved Matter . | . . . . Retrieved Components . | . . . . Parts Scanalyzed . | . . . . Part Schematics Acquired . | . . . . Parts Damaged . | . . . . Bothacking | -11 -10 -10 -10 ------------ Run | Yrd Mat Min Sub Used RIF Installer . | . . . . Robots Hacked . | . . . . Non-combat . | . . . . Combat . | . . . . Robot Hacks Applied . | . . . . Relay Couplers Released . | . . . . Fabnet Peak Effective % . | . . . . Robots Rewired . | . . . . Allies Hacked . | . . . . Hacks Repelled . | . . . . Allies | -11 -10 -10 -10 -------- Run | Yrd Mat Min Sub Total Allies . | . . . . Largest Group . | . . . . Highest-Rated Group . | . . . . Highest-Rated Ally . | . . . . Total Orders . | . . . . Ally Attacks . | . . . . Total Damage . | . . . . Kills . | . . . . Allies Corrupted . | . . . . Allies Melted . | . . . . Intel | -11 -10 -10 -10 ------- Run | Yrd Mat Min Sub Robot Analysis Total . | . . . . Derelict Logs Recovered 2 | . . 2 . Drone Launches . | . . . . Drone Recoveries . | . . . . Exploration | -11 -10 -10 -10 ------------- Run | Yrd Mat Min Sub Turns Passed 3839 | 152 693 675 2319 Spaces Moved 2095 | 71 354 399 1271 Core 4 | 4 . . . Treads 2091 | 67 354 399 1271 Legs . | . . . . Wheels . | . . . . Hover . | . . . . Flight . | . . . . Fastest Speed 50 | 50 160 160 160 Average Speed 159 | 153 160 160 160 Slowest Speed 160 | 160 160 160 160 Overloaded Moves . | . . . . Propulsion Burnouts . | . . . . Robots Hopped . | . . . . Cave-ins Triggered . | . . . . Exploration Rate (%) 57 | 5 54 93 76 Regions Visited 3 Branch Regions 2 Pre-discovered Areas 2 | . 1 1 . Known Exits Taken 1 | . 1 . . Unknown Exits Taken 2 | 1 . 1 . Scrap Searched 7 | . . 1 6 Spaces Dug 3 | . 3 . . Terrain Destroyed 185 | . 3 . 182 Melee . | . . . . Projectile 3 | . 3 . . AOE 182 | . . . 182 Terrain Rammed . | . . . . Walls Destroyed . | . . . . Machines Disabled . | . . . . Actions | -11 -10 -10 -10 --------- Run | Yrd Mat Min Sub Total 2385 | 92 408 419 1466 Wait 122 | 2 12 6 102 Move 2092 | 70 353 398 1271 Hop . | . . . . Pick Up 14 | 2 4 2 6 Fast Attach 7 | 7 . . . Attach 4 | . 1 . 3 Detach . | . . . . Swap 18 | 1 4 1 12 Drop 10 | . . 3 7 Fire 113 | 10 34 9 60 Melee . | . . . . Ram . | . . . . Kick . | . . . . Crush . | . . . . Escape Stasis . | . . . . Rewire . | . . . . Trap . | . . . . Miscellaneous 5 | . . . 5 Route ------- -11/Scrapyard -10/Materials (discovered 3 exits: *Mat x2 / *Min) -10/Mines (discovered 3 exits: *Mat x2 / *Sub) -10/Subcaves (discovered 2 exits: [*Mat x2]) History --------- Turn | Location | Event 28 | -11/Scrapyard | Discovered new exit (range 15) 153 | -11/Scrapyard | Entered Materials 308 | -10/Materials | Build established: Mutant 515 | -10/Materials | Discovered new exit (range 14) 642 | -10/Materials | Discovered new exit (range 12) 661 | -10/Materials | Identified exit to Mines 661 | -10/Materials | Identified exit to Materials 690 | -10/Materials | Learned 4 Subcaves zone layouts 709 | -10/Materials | Learned 2 Storage zone layouts 718 | -10/Materials | Learned 2 Materials zone layouts 719 | -10/Materials | Learned Recycling recycling unit intel 721 | -10/Materials | Learned 2 Storage zone layouts 722 | -10/Materials | Learned location of Storage (-9) 724 | -10/Materials | Loaded intel: 15 trap records 737 | -10/Materials | Learned 2 Storage zone layouts 846 | -10/Materials | Entered Mines 874 | -10/Mines | Discovered exit to Materials (range 14) 935 | -10/Mines | Received a Rocket Launcher from a helpful Derelict 1043 | -10/Mines | Learned 4 Materials zone layouts 1053 | -10/Mines | Found a hidden stash of uninstalled traps 1154 | -10/Mines | Found the Drone Emporium 1165 | -10/Mines | Found Prototype Device 1232 | -10/Mines | Discovered exit to Materials (range 13) 1327 | -10/Mines | Learned Materials non-interactive machine intel 1420 | -10/Mines | Deemed a non-threat by the Exiles lab entrance 1508 | -10/Mines | Discovered new exit (range 9) 1521 | -10/Mines | Entered Subcaves 2108 | -10/Subcaves | Core integrity fell below 50% 2289 | -10/Subcaves | A swath of the cavern ceiling suddenly collapsed 2471 | -10/Subcaves | Shifting Twisted Machinery released Flamer 2474 | -10/Subcaves | Discovered new exit (range 9) 2532 | -10/Subcaves | Shifting Twisted Machinery released Battle Cannon 2700 | -10/Subcaves | Discovered new exit (range 10) 3541 | -10/Subcaves | Visited Clippyterm 3546 | -10/Subcaves | Learned Factory fabricator intel 3546 | -10/Subcaves | Learned Factory trap positions 3753 | -10/Subcaves | Core integrity fell below 20% 3840 | -10/Subcaves | Destroyed by 81-U7X(R) with Subdweller Shrapnel Launcher Last Messages --------------- It looks like you want to play with dangerous UFD tech. While I can't recommend taking subatomizers out of the Subcaves, I can warn that doing so is a one-way ticket to summoning unimaginable chaos on any area not hardened against them. That includes... just about anywhere. 03585_ 41-NHB(R) destroyed. 03589_ AD-OME(R) destroyed. 03601_ Acquired 3 matter. 03604_ The unstable cave ceiling collapses. 03604_ Scrap Shield Fragment affixed to Scrap Shield (+3). 03619_ The unstable cave ceiling collapses. 03753_ DE-DOT(R) destroyed. 03758_ FI-7ZL(R) destroyed. 03759_ The unstable cave ceiling collapses. 03771_ Scrap Shield Fragment affixed to Scrap Shield (+21). 03772_ Acquired 28 matter. 03774_ The unstable cave ceiling collapses. 03775_ Scrap Shield Fragment affixed to Scrap Shield (+44). 03779_ Acquired 1 matter. 03781_ The unstable cave ceiling collapses. 03838_ Destroyed Scrap Shield. Map ----- +----------------------------------------------------+ | | | | | | | | | | | | | ?????????????????????????????????????????????????? | | ?????????????????????????????????????????????????? | | ?????????????????????????????????????????????????? | | ?????????????????????????????????????????????????? | | ?????????????????????????????????????????????????? | | ?????????????????????????????????????????????????? | | ?????????????????????????????????????????????????? | | ?????????????????????????????????????????????????? | | ?????????????????????????????????????????????????? | | ??????????????????????????######?????????????????? | | ??????????????????????????< <###???????????????? | | ????????????????????????##$$# & #???????????????? | | ????????????????????????# #???????????????? | | ????????????????????????# #???????????????? | | ????????????????????##### ##??????????????? | | ###????????????????## ;;# R ##?????????????? | | ##??????????????## #?????????????? | | ##?????????##### ##?????????????? | | #?????????#;;;; ###??????????????? | | #####????##;; @ #????????????????? | | ## ##???# #????????????????? | | ## ##??# #????????????????? | | #### #??# #### ????????????? | | ### ##??# ;; ???????????? | | ## ##??# ;;;; ???????????? | | ### #?## #### ???????????? | | #### ##?# ### ??????????? | | ### #### ??????????? | | ## # ???????????? | | ?# # # #### ## ???????????? | | ## !### ###?# #?# ????????????? | | ## = ! #??###?? ??????????????? | | ## # "" "#??????????????????????? | | ### "" ""#?????????????????????? | | ## # ## ### " ?????????????????????? | | ### ####### ##??" "#?????????????????????? | | #?####?????# #???"" ##?????????????????????? | | #?????????? #??? "##??????????????????????? | | #?????????? ????#????????????????????????? | | ## #????????? #????????????????????????????? | | ?#####????????? #????????????????????????????? | | #????????????? ## #????????????????????????????? | | #??????????????#??# ????????????????????????????? | | #??????????????????##????????????????????????????? | +----------------------------------------------------+ Best States ------------- Heat Dissipation 25 Energy Generation 10 Energy Capacity 250 Matter Stores 300 Matter Capacity 300 Sight Range 16 Terrain Scan Density 10 Armor Coverage 800 Evasion (%) 40 Recoil Reduction 2 Item Schematics ----------------- None Robot Schematics ------------------ None Fabricated ------------ Nothing Alien Tech Used ----------------- None Achievements -------------- None Challenges ------------ None Game ------ Seed ReactionParticleBlaster Manual? 0 Play Time 00:17:37 Cumulative 305.6 hours Start 2024.10.05 @ 17:08:30 End 2024.10.05 @ 17:36:14 Sessions 1 Manual Loads 0 Difficulty Rogue Special Mode None Game No. 241 Rogue 241 Adventurer 0 Explorer 0 Win Type - Total 2 Types 1/0/0/1/0/0/0/0/0 Lore% 74 Gallery% 78 Achievement% 59 Wizard Run 0 Options --------- Layout 2 ASCII 0 Keyboard 1 Movement Vi Keybinds 0 Fullscreen 1 Font 32/SmallcapsGlow Map View 77x44 Zoom Use 0% Tactical HUD 1 Map Filters NONE Filters NONE Steam 1 RUN: f132a827-0904-4809-a182-9e9b4e6fcd0e